[Event "Titled Tuesday Blitz July 11 Early 2023"]
[White "Rodchenkov, Sergey D."]
[Black "Wagner, Dennis"]
[WhiteFideId "4168712"]
[BlackFideId "24650684"]
[WhiteElo "2575"]
[BlackElo "2722"]
[Result "1-0"]
[Round "9"]
[TimeControl "180+2"]
[Date "2023.07.11"]
[WhiteClock "0:00:11"]
[BlackClock "0:00:16"]
[Board "37"]

1. e4 {[%clk 0:03:00]}  c5 {[%clk 0:02:58]} 2. Nf3 {[%clk 0:03:01]}  d6 {[%clk 0:02:57]} 3. d4 {[%clk 0:03:01]}  cxd4 {[%clk 0:02:58]} 4. Nxd4 {[%clk 0:03:02]}  Nf6 {[%clk 0:02:59]} 5. Nc3 {[%clk 0:03:03]}  a6 {[%clk 0:02:59]} 6. Be3 {[%clk 0:03:02]}  e5 {[%clk 0:02:59]} 7. Nb3 {[%clk 0:03:02]}  Be7 {[%clk 0:02:59]} 8. f3 {[%clk 0:03:02]}  Be6 {[%clk 0:02:56]} 9. Qd2 {[%clk 0:03:03]}  h5 {[%clk 0:02:56]} 10. Nd5 {[%clk 0:03:00]}  Nxd5 {[%clk 0:02:56]} 11. exd5 {[%clk 0:03:01]}  Bf5 {[%clk 0:02:56]} 12. Na5 {[%clk 0:02:59]}  Nd7 {[%clk 0:02:54]} 13. Be2 {[%clk 0:02:56]}  Bh4+ {[%clk 0:02:51]} 14. g3 {[%clk 0:02:55]}  Be7 {[%clk 0:02:51]} 15. O-O {[%clk 0:02:52]}  Qc7 {[%clk 0:02:48]} 16. c4 {[%clk 0:02:51]}  Bg6 {[%clk 0:02:31]} 17. b4 {[%clk 0:02:34]}  O-O {[%clk 0:02:30]} 18. Rac1 {[%clk 0:02:27]}  f5 {[%clk 0:01:54]} 19. f4 {[%clk 0:02:24]}  Rae8 {[%clk 0:01:39]} 20. c5 {[%clk 0:02:06]}  dxc5 {[%clk 0:01:28]} 21. d6 {[%clk 0:02:06]}  Qxd6 {[%clk 0:01:16]} 22. Qxd6 {[%clk 0:02:05]}  Bxd6 {[%clk 0:01:17]} 23. Rfd1 {[%clk 0:02:03]}  exf4 {[%clk 0:00:53]} 24. Rxd6 {[%clk 0:01:59]}  Rxe3 {[%clk 0:00:52]} 25. Bc4+ {[%clk 0:01:52]}  Kh7 {[%clk 0:00:53]} 26. Rxd7 {[%clk 0:01:50]}  b5 {[%clk 0:00:52]} 27. Bd5 {[%clk 0:01:43]}  fxg3 {[%clk 0:00:44]} 28. hxg3 {[%clk 0:01:41]}  cxb4 {[%clk 0:00:38]} 29. Rcc7 {[%clk 0:01:31]}  Rxg3+ {[%clk 0:00:27]} 30. Kf2 {[%clk 0:01:29]}  f4 {[%clk 0:00:27]} 31. Rxg7+ {[%clk 0:01:24]}  Kh6 {[%clk 0:00:28]} 32. Nc6 {[%clk 0:01:18]}  Re8 {[%clk 0:00:20]} 33. Nd4 {[%clk 0:00:34]}  h4 {[%clk 0:00:15]} 34. Ne6 {[%clk 0:00:15]}  h3 {[%clk 0:00:15]} 35. Nxf4 {[%clk 0:00:14]}  Rg4 {[%clk 0:00:13]} 36. Nxg6 {[%clk 0:00:10]}  Rxg6 {[%clk 0:00:14]} 37. Rxg6+ {[%clk 0:00:10]}  Kxg6 {[%clk 0:00:14]} 38. Bf7+ {[%clk 0:00:11]}  Kf5 {[%clk 0:00:12]} 39. Bxe8 {[%clk 0:00:12]}  h2 {[%clk 0:00:12]} 40. Bc6 {[%clk 0:00:12]}  Ke5 {[%clk 0:00:12]} 41. Rh7 {[%clk 0:00:13]}  Kd6 {[%clk 0:00:13]} 42. Bf3 {[%clk 0:00:11]}  Kc5 {[%clk 0:00:13]} 43. Rxh2 {[%clk 0:00:11]}  Kb6 {[%clk 0:00:14]} 44. Ke2 {[%clk 0:00:11]}  Ka5 {[%clk 0:00:15]} 45. Kd2 {[%clk 0:00:12]}  Ka4 {[%clk 0:00:15]} 46. Kc2 {[%clk 0:00:13]}  Ka3 {[%clk 0:00:15]} 47. Kb1 {[%clk 0:00:13]}  a5 {[%clk 0:00:15]} 48. Bc6 {[%clk 0:00:12]}  Ka4 {[%clk 0:00:14]} 49. Kb2 {[%clk 0:00:08]}  b3 {[%clk 0:00:14]} 50. axb3+ {[%clk 0:00:08]}  Kb4 {[%clk 0:00:14]} 51. Rh4+ {[%clk 0:00:09]}  Kc5 {[%clk 0:00:15]} 52. Bxb5 {[%clk 0:00:09]}  Kxb5 {[%clk 0:00:16]} 53. Ka3 {[%clk 0:00:10]}  Ka6 {[%clk 0:00:15]} 54. Rh5 {[%clk 0:00:10]}  Kb6 {[%clk 0:00:16]} 55. Ka4 {[%clk 0:00:11]}  Kc6 {[%clk 0:00:17]} 56. Kxa5 {[%clk 0:00:10]}  Kb7 {[%clk 0:00:18]} 57. b4 {[%clk 0:00:11]}  Ka7 {[%clk 0:00:16]} 58. Rh6 {[%clk 0:00:11]} 1-0


[Site "https://www.chess.com"]

[Event "Titled Tuesday Blitz July 11 Early 2023"]
[White "Horobetz, Graham"]
[Black "Gunina, Valentina"]
[WhiteFideId "2047322"]
[BlackFideId "4167570"]
[WhiteElo "2571"]
[BlackElo "2719"]
[Result "0-1"]
[Round "9"]
[TimeControl "180+2"]
[Date "2023.07.11"]
[WhiteClock "0:00:17"]
[BlackClock "0:02:30"]
[Board "38"]

1. e4 {[%clk 0:03:00]}  c6 {[%clk 0:02:59]} 2. d4 {[%clk 0:03:00]}  d5 {[%clk 0:02:59]} 3. Nc3 {[%clk 0:03:01]}  dxe4 {[%clk 0:02:59]} 4. Nxe4 {[%clk 0:03:02]}  Nf6 {[%clk 0:03:00]} 5. Nxf6+ {[%clk 0:03:02]}  exf6 {[%clk 0:03:00]} 6. c3 {[%clk 0:03:03]}  Bd6 {[%clk 0:03:00]} 7. Bd3 {[%clk 0:03:04]}  O-O {[%clk 0:03:00]} 8. Qc2 {[%clk 0:03:05]}  Re8+ {[%clk 0:03:01]} 9. Ne2 {[%clk 0:03:05]}  h5 {[%clk 0:03:01]} 10. O-O {[%clk 0:03:06]}  Nd7 {[%clk 0:03:02]} 11. Bd2 {[%clk 0:03:05]}  Nf8 {[%clk 0:03:02]} 12. Rae1 {[%clk 0:03:06]}  g6 {[%clk 0:02:59]} 13. h3 {[%clk 0:03:02]}  Be6 {[%clk 0:02:56]} 14. f4 {[%clk 0:03:02]}  f5 {[%clk 0:02:56]} 15. c4 {[%clk 0:02:53]}  Rc8 {[%clk 0:02:55]} 16. b4 {[%clk 0:02:39]}  Nh7 {[%clk 0:02:54]} 17. Qb2 {[%clk 0:02:29]}  Nf6 {[%clk 0:02:51]} 18. d5 {[%clk 0:01:47]}  cxd5 {[%clk 0:02:51]} 19. c5 {[%clk 0:01:47]}  Bc7 {[%clk 0:02:49]} 20. Bc3 {[%clk 0:01:44]}  Ne4 {[%clk 0:02:49]} 21. Bxe4 {[%clk 0:01:45]}  fxe4 {[%clk 0:02:48]} 22. Bf6 {[%clk 0:01:44]}  Qd7 {[%clk 0:02:48]} 23. Bh8 {[%clk 0:01:40]}  f5 {[%clk 0:02:48]} 24. Be5 {[%clk 0:01:33]}  Qf7 {[%clk 0:02:45]} 25. Bxc7 {[%clk 0:01:32]}  Rxc7 {[%clk 0:02:46]} 26. Nd4 {[%clk 0:01:33]}  Bd7 {[%clk 0:02:45]} 27. h4 {[%clk 0:01:32]}  Rec8 {[%clk 0:02:44]} 28. Rc1 {[%clk 0:01:09]}  Qf6 {[%clk 0:02:44]} 29. Qd2 {[%clk 0:01:05]}  Qxh4 {[%clk 0:02:40]} 30. b5 {[%clk 0:00:38]}  Qf6 {[%clk 0:02:37]} 31. Qb4 {[%clk 0:00:26]}  Be8 {[%clk 0:02:34]} 32. Rc3 {[%clk 0:00:24]}  a5 {[%clk 0:02:31]} 33. Qa3 {[%clk 0:00:17]}  Qxd4+ {[%clk 0:02:30]} 0-1


[Site "https://www.chess.com"]

[Event "Titled Tuesday Blitz July 11 Early 2023"]
[White "brm72"]
[Black "Schwabeneder, Florian"]
[BlackFideId "1626191"]
[WhiteElo "2536"]
[BlackElo "2699"]
[Result "1/2-1/2"]
[Round "9"]
[TimeControl "180+2"]
[Date "2023.07.11"]
[WhiteClock "0:00:07"]
[BlackClock "0:00:11"]
[Board "44"]

1. e4 {[%clk 0:03:00]}  c5 {[%clk 0:02:56]} 2. Nf3 {[%clk 0:03:00]}  d6 {[%clk 0:02:56]} 3. d4 {[%clk 0:03:01]}  cxd4 {[%clk 0:02:57]} 4. Nxd4 {[%clk 0:03:02]}  Nf6 {[%clk 0:02:57]} 5. Nc3 {[%clk 0:03:02]}  Nc6 {[%clk 0:02:58]} 6. Bg5 {[%clk 0:03:00]}  e6 {[%clk 0:02:54]} 7. f3 {[%clk 0:02:59]}  a6 {[%clk 0:02:50]} 8. Qd2 {[%clk 0:02:58]}  Qb6 {[%clk 0:02:49]} 9. Nb3 {[%clk 0:02:39]}  Qc7 {[%clk 0:02:47]} 10. O-O-O {[%clk 0:02:39]}  b5 {[%clk 0:02:46]} 11. Kb1 {[%clk 0:02:38]}  b4 {[%clk 0:02:43]} 12. Ne2 {[%clk 0:02:26]}  Be7 {[%clk 0:02:25]} 13. Ned4 {[%clk 0:02:18]}  Rb8 {[%clk 0:01:57]} 14. Nxc6 {[%clk 0:02:18]}  Qxc6 {[%clk 0:01:57]} 15. Nd4 {[%clk 0:02:19]}  Qc7 {[%clk 0:01:53]} 16. g4 {[%clk 0:02:18]}  h6 {[%clk 0:01:50]} 17. Be3 {[%clk 0:02:18]}  h5 {[%clk 0:01:50]} 18. g5 {[%clk 0:02:18]}  Nd7 {[%clk 0:01:49]} 19. g6 {[%clk 0:02:17]}  Ne5 {[%clk 0:01:49]} 20. gxf7+ {[%clk 0:02:14]}  Kxf7 {[%clk 0:01:49]} 21. f4 {[%clk 0:02:14]}  Nc4 {[%clk 0:01:47]} 22. Bxc4 {[%clk 0:02:13]}  Qxc4 {[%clk 0:01:48]} 23. b3 {[%clk 0:02:00]}  Qc3 {[%clk 0:01:45]} 24. Qxc3 {[%clk 0:01:55]}  bxc3 {[%clk 0:01:45]} 25. f5 {[%clk 0:01:55]}  exf5 {[%clk 0:01:41]} 26. Nxf5 {[%clk 0:01:52]}  Bxf5 {[%clk 0:01:38]} 27. exf5 {[%clk 0:01:53]}  Rb5 {[%clk 0:01:37]} 28. Bd4 {[%clk 0:01:50]}  Rxf5 {[%clk 0:01:31]} 29. Bxc3 {[%clk 0:01:50]}  Rc8 {[%clk 0:01:30]} 30. Rhf1 {[%clk 0:01:44]}  g6 {[%clk 0:01:25]} 31. Bd4 {[%clk 0:01:36]}  Rf8 {[%clk 0:01:05]} 32. Rxf5+ {[%clk 0:01:31]}  gxf5 {[%clk 0:01:05]} 33. c4 {[%clk 0:01:31]}  Rg8 {[%clk 0:00:54]} 34. Rg1 {[%clk 0:01:28]}  Rg4 {[%clk 0:00:49]} 35. Bb6 {[%clk 0:01:25]}  Ke6 {[%clk 0:00:31]} 36. Kc2 {[%clk 0:01:24]}  f4 {[%clk 0:00:28]} 37. Kd3 {[%clk 0:01:24]}  Kf5 {[%clk 0:00:28]} 38. h3 {[%clk 0:01:23]}  Rxg1 {[%clk 0:00:11]} 39. Bxg1 {[%clk 0:01:24]}  Bg5 {[%clk 0:00:10]} 40. Ba7 {[%clk 0:01:12]}  f3 {[%clk 0:00:09]} 41. Bb8 {[%clk 0:01:12]}  Bf4 {[%clk 0:00:08]} 42. b4 {[%clk 0:01:06]}  d5 {[%clk 0:00:04]} 43. Bxf4 {[%clk 0:00:51]}  dxc4+ {[%clk 0:00:05]} 44. Ke3 {[%clk 0:00:50]}  f2 {[%clk 0:00:03]} 45. Kxf2 {[%clk 0:00:48]}  Kxf4 {[%clk 0:00:03]} 46. a4 {[%clk 0:00:39]}  Ke4 {[%clk 0:00:03]} 47. Ke2 {[%clk 0:00:34]}  Kd4 {[%clk 0:00:04]} 48. Kd2 {[%clk 0:00:28]}  c3+ {[%clk 0:00:04]} 49. Kc2 {[%clk 0:00:28]}  Kc4 {[%clk 0:00:05]} 50. b5 {[%clk 0:00:13]}  axb5 {[%clk 0:00:05]} 51. axb5 {[%clk 0:00:06]}  Kxb5 {[%clk 0:00:05]} 52. Kxc3 {[%clk 0:00:07]}  Kc5 {[%clk 0:00:06]} 53. Kd3 {[%clk 0:00:07]}  Kd5 {[%clk 0:00:07]} 54. Ke3 {[%clk 0:00:06]}  Ke5 {[%clk 0:00:08]} 55. Kf3 {[%clk 0:00:06]}  Kf5 {[%clk 0:00:09]} 56. h4 {[%clk 0:00:06]}  Ke5 {[%clk 0:00:09]} 57. Ke3 {[%clk 0:00:06]}  Kf5 {[%clk 0:00:10]} 58. Kf3 {[%clk 0:00:06]}  Ke5 {[%clk 0:00:10]} 59. Ke3 {[%clk 0:00:07]}  Kf5 {[%clk 0:00:11]} 60. Kf3 {[%clk 0:00:07]} 1/2-1/2


[Site "https://www.chess.com"]

[Event "Titled Tuesday Blitz July 11 Early 2023"]
[White "only_strong_moves"]
[Black "Jaracz, Pawel"]
[BlackFideId "1102222"]
[WhiteElo "2533"]
[BlackElo "2696"]
[Result "0-1"]
[Round "9"]
[TimeControl "180+2"]
[Date "2023.07.11"]
[WhiteClock "0:00:08"]
[BlackClock "0:00:22"]
[Board "45"]

1. d4 {[%clk 0:03:00]}  d5 {[%clk 0:02:55]} 2. Nc3 {[%clk 0:03:01]}  c6 {[%clk 0:02:54]} 3. Bf4 {[%clk 0:03:01]}  Qb6 {[%clk 0:02:53]} 4. Na4 {[%clk 0:02:45]}  Qa5+ {[%clk 0:02:53]} 5. c3 {[%clk 0:02:43]}  Bf5 {[%clk 0:02:42]} 6. b4 {[%clk 0:02:41]}  Qd8 {[%clk 0:02:40]} 7. Nf3 {[%clk 0:02:37]}  Nd7 {[%clk 0:02:39]} 8. e3 {[%clk 0:02:35]}  Ngf6 {[%clk 0:02:38]} 9. Ne5 {[%clk 0:02:35]}  Ne4 {[%clk 0:02:34]} 10. f3 {[%clk 0:02:31]}  Nd6 {[%clk 0:02:26]} 11. g4 {[%clk 0:02:28]}  Bg6 {[%clk 0:02:23]} 12. h4 {[%clk 0:02:28]}  f6 {[%clk 0:02:01]} 13. Nxg6 {[%clk 0:02:25]}  hxg6 {[%clk 0:02:01]} 14. Bd3 {[%clk 0:02:21]}  Kf7 {[%clk 0:01:58]} 15. Qc2 {[%clk 0:02:21]}  g5 {[%clk 0:01:48]} 16. Bg6+ {[%clk 0:02:18]}  Kg8 {[%clk 0:01:47]} 17. Bxd6 {[%clk 0:02:07]}  exd6 {[%clk 0:01:47]} 18. O-O-O {[%clk 0:02:07]}  gxh4 {[%clk 0:01:44]} 19. e4 {[%clk 0:01:57]}  b5 {[%clk 0:01:21]} 20. Nb2 {[%clk 0:01:16]}  Rh6 {[%clk 0:01:10]} 21. exd5 {[%clk 0:01:15]}  cxd5 {[%clk 0:01:09]} 22. Bd3 {[%clk 0:01:03]}  Nb6 {[%clk 0:01:07]} 23. Bxb5 {[%clk 0:01:01]}  a5 {[%clk 0:01:07]} 24. a3 {[%clk 0:00:48]}  axb4 {[%clk 0:01:07]} 25. axb4 {[%clk 0:00:49]}  Qc8 {[%clk 0:00:45]} 26. Kb1 {[%clk 0:00:42]}  Ra3 {[%clk 0:00:44]} 27. c4 {[%clk 0:00:30]}  Qa8 {[%clk 0:00:41]} 28. Qf5 {[%clk 0:00:25]}  dxc4 {[%clk 0:00:34]} 29. g5 {[%clk 0:00:18]}  fxg5 {[%clk 0:00:31]} 30. Kc2 {[%clk 0:00:11]}  Rxf3 {[%clk 0:00:29]} 31. Qxg5 {[%clk 0:00:10]}  Qe4+ {[%clk 0:00:28]} 32. Kc1 {[%clk 0:00:08]}  Rc3+ {[%clk 0:00:22]} 0-1


[Site "https://www.chess.com"]

[Event "Titled Tuesday Blitz July 11 Early 2023"]
[White "Moskvin, Anatoly"]
[Black "Begmuratov, Alisher"]
[WhiteFideId "24199990"]
[BlackFideId "14203367"]
[WhiteElo "2533"]
[BlackElo "2668"]
[Result "0-1"]
[Round "9"]
[TimeControl "180+2"]
[Date "2023.07.11"]
[WhiteClock "0:00:00"]
[BlackClock "0:00:54"]
[Board "46"]

1. e4 {[%clk 0:03:00]}  c6 {[%clk 0:02:39]} 2. c4 {[%clk 0:03:00]}  d5 {[%clk 0:02:40]} 3. exd5 {[%clk 0:03:01]}  cxd5 {[%clk 0:02:41]} 4. cxd5 {[%clk 0:03:02]}  Nf6 {[%clk 0:02:40]} 5. Nc3 {[%clk 0:03:03]}  Nxd5 {[%clk 0:02:39]} 6. Nf3 {[%clk 0:03:04]}  Nc6 {[%clk 0:02:39]} 7. Bb5 {[%clk 0:03:03]}  e6 {[%clk 0:02:38]} 8. O-O {[%clk 0:03:03]}  Be7 {[%clk 0:02:37]} 9. d4 {[%clk 0:03:03]}  O-O {[%clk 0:02:37]} 10. Re1 {[%clk 0:03:04]}  Nxc3 {[%clk 0:02:33]} 11. bxc3 {[%clk 0:03:04]}  Bd7 {[%clk 0:02:34]} 12. Bd3 {[%clk 0:03:00]}  Rc8 {[%clk 0:02:32]} 13. Qe2 {[%clk 0:02:54]}  Bf6 {[%clk 0:02:31]} 14. h4 {[%clk 0:02:38]}  Na5 {[%clk 0:02:27]} 15. Bd2 {[%clk 0:02:25]}  Bc6 {[%clk 0:02:25]} 16. Ng5 {[%clk 0:02:15]}  g6 {[%clk 0:02:18]} 17. Rab1 {[%clk 0:01:57]}  a6 {[%clk 0:02:15]} 18. Qg4 {[%clk 0:01:15]}  h5 {[%clk 0:02:04]} 19. Qg3 {[%clk 0:01:10]}  b5 {[%clk 0:01:58]} 20. Nxe6 {[%clk 0:01:01]}  Qd7 {[%clk 0:01:41]} 21. Nf4 {[%clk 0:00:39]}  Nc4 {[%clk 0:01:24]} 22. Bc1 {[%clk 0:00:33]}  Bg7 {[%clk 0:01:21]} 23. a4 {[%clk 0:00:25]}  Rfe8 {[%clk 0:01:19]} 24. Rf1 {[%clk 0:00:22]}  Qg4 {[%clk 0:01:11]} 25. Qxg4 {[%clk 0:00:21]}  hxg4 {[%clk 0:01:12]} 26. axb5 {[%clk 0:00:22]}  axb5 {[%clk 0:01:13]} 27. Bxc4 {[%clk 0:00:09]}  bxc4 {[%clk 0:01:13]} 28. Ba3 {[%clk 0:00:10]}  Bh6 {[%clk 0:01:11]} 29. Bd6 {[%clk 0:00:10]}  Rcd8 {[%clk 0:01:06]} 30. Be5 {[%clk 0:00:07]}  Rxe5 {[%clk 0:01:06]} 31. dxe5 {[%clk 0:00:08]}  Bxf4 {[%clk 0:01:06]} 32. Rfe1 {[%clk 0:00:07]}  g3 {[%clk 0:01:03]} 33. Rb6 {[%clk 0:00:08]}  Rd2 {[%clk 0:00:57]} 34. fxg3 {[%clk 0:00:06]}  Bxg3 {[%clk 0:00:57]} 35. Ra1 {[%clk 0:00:02]}  Bf2+ {[%clk 0:00:55]} 36. Kf1 {[%clk 0:00:00]}  Bxb6 {[%clk 0:00:54]} 0-1


[Site "https://www.chess.com"]

[Event "Titled Tuesday Blitz July 11 Early 2023"]
[White "FromTexas54"]
[Black "Komov, Roman"]
[BlackFideId "24175714"]
[WhiteElo "2528"]
[BlackElo "2660"]
[Result "1/2-1/2"]
[Round "9"]
[TimeControl "180+2"]
[Date "2023.07.11"]
[WhiteClock "0:01:25"]
[BlackClock "0:01:01"]
[Board "47"]

1. d4 {[%clk 0:02:59]}  Nf6 {[%clk 0:02:59]} 2. c4 {[%clk 0:02:59]}  e6 {[%clk 0:03:00]} 3. Nf3 {[%clk 0:02:59]}  d5 {[%clk 0:03:00]} 4. Nc3 {[%clk 0:03:00]}  Bb4 {[%clk 0:03:01]} 5. cxd5 {[%clk 0:02:59]}  exd5 {[%clk 0:03:01]} 6. Bg5 {[%clk 0:02:59]}  Nbd7 {[%clk 0:03:02]} 7. e3 {[%clk 0:02:58]}  c5 {[%clk 0:03:02]} 8. Bd3 {[%clk 0:02:57]}  c4 {[%clk 0:03:01]} 9. Bc2 {[%clk 0:02:47]}  Qa5 {[%clk 0:02:59]} 10. O-O {[%clk 0:02:40]}  Bxc3 {[%clk 0:02:59]} 11. bxc3 {[%clk 0:02:41]}  Qxc3 {[%clk 0:03:00]} 12. Rc1 {[%clk 0:02:37]}  Qa5 {[%clk 0:02:55]} 13. Ne5 {[%clk 0:02:22]}  O-O {[%clk 0:02:54]} 14. Nxd7 {[%clk 0:02:21]}  Nxd7 {[%clk 0:02:55]} 15. Qh5 {[%clk 0:02:21]}  g6 {[%clk 0:02:46]} 16. Qh6 {[%clk 0:02:18]}  Re8 {[%clk 0:02:36]} 17. h4 {[%clk 0:02:17]}  Qa3 {[%clk 0:02:35]} 18. h5 {[%clk 0:02:08]}  Qf8 {[%clk 0:02:30]} 19. hxg6 {[%clk 0:02:08]}  hxg6 {[%clk 0:02:30]} 20. Qh4 {[%clk 0:02:05]}  Qg7 {[%clk 0:02:18]} 21. f3 {[%clk 0:01:54]}  b5 {[%clk 0:02:02]} 22. Kf2 {[%clk 0:01:53]}  Bb7 {[%clk 0:01:48]} 23. Rh1 {[%clk 0:01:52]}  Re6 {[%clk 0:01:30]} 24. Bh6 {[%clk 0:01:49]}  Qh8 {[%clk 0:01:30]} 25. Qg3 {[%clk 0:01:34]}  Rae8 {[%clk 0:01:26]} 26. Bg5 {[%clk 0:01:31]}  Qg7 {[%clk 0:01:25]} 27. Bh6 {[%clk 0:01:31]}  Qh8 {[%clk 0:01:14]} 28. Bg5 {[%clk 0:01:27]}  Qg7 {[%clk 0:01:14]} 29. Bh6 {[%clk 0:01:27]}  Qf6 {[%clk 0:01:04]} 30. Bg5 {[%clk 0:01:25]}  Qg7 {[%clk 0:01:01]} 1/2-1/2


[Site "https://www.chess.com"]

[Event "Titled Tuesday Blitz July 11 Early 2023"]
[White "lagarto93"]
[Black "Arabidze, Meri"]
[BlackFideId "13604040"]
[WhiteElo "2515"]
[BlackElo "2640"]
[Result "1-0"]
[Round "9"]
[TimeControl "180+2"]
[Date "2023.07.11"]
[WhiteClock "0:01:36"]
[BlackClock "0:00:05"]
[Board "49"]

1. d4 {[%clk 0:03:00]}  f5 {[%clk 0:02:59]} 2. c4 {[%clk 0:03:01]}  Nf6 {[%clk 0:02:59]} 3. Nc3 {[%clk 0:03:02]}  e6 {[%clk 0:02:59]} 4. e3 {[%clk 0:03:01]}  Bb4 {[%clk 0:02:59]} 5. Bd3 {[%clk 0:03:02]}  b6 {[%clk 0:02:59]} 6. Ne2 {[%clk 0:03:02]}  Bb7 {[%clk 0:02:59]} 7. f3 {[%clk 0:03:01]}  O-O {[%clk 0:02:58]} 8. O-O {[%clk 0:03:01]}  d5 {[%clk 0:02:50]} 9. Qb3 {[%clk 0:02:54]}  Bd6 {[%clk 0:02:43]} 10. cxd5 {[%clk 0:02:42]}  Nxd5 {[%clk 0:02:44]} 11. e4 {[%clk 0:02:41]}  fxe4 {[%clk 0:02:34]} 12. fxe4 {[%clk 0:02:36]}  Bxh2+ {[%clk 0:02:29]} 13. Kxh2 {[%clk 0:02:35]}  Rxf1 {[%clk 0:02:30]} 14. Bg5 {[%clk 0:02:16]}  Qxg5 {[%clk 0:02:10]} 15. Rxf1 {[%clk 0:02:16]}  Qh6+ {[%clk 0:02:11]} 16. Kg1 {[%clk 0:02:15]}  Qe3+ {[%clk 0:02:08]} 17. Rf2 {[%clk 0:02:12]}  Qxd3 {[%clk 0:01:16]} 18. Nxd5 {[%clk 0:01:57]}  Qb1+ {[%clk 0:00:59]} 19. Rf1 {[%clk 0:01:56]}  Bxd5 {[%clk 0:00:59]} 20. Qf3 {[%clk 0:01:56]}  Qxf1+ {[%clk 0:00:51]} 21. Kxf1 {[%clk 0:01:55]}  Bb7 {[%clk 0:00:36]} 22. Qg4 {[%clk 0:01:53]}  Nc6 {[%clk 0:00:33]} 23. Qxe6+ {[%clk 0:01:50]}  Kh8 {[%clk 0:00:34]} 24. Qd7 {[%clk 0:01:49]}  Rc8 {[%clk 0:00:28]} 25. e5 {[%clk 0:01:40]}  Nb8 {[%clk 0:00:16]} 26. Qg4 {[%clk 0:01:37]}  Rf8+ {[%clk 0:00:15]} 27. Ke1 {[%clk 0:01:37]}  Bd5 {[%clk 0:00:11]} 28. Nf4 {[%clk 0:01:36]}  Bxa2 {[%clk 0:00:09]} 29. Nh5 {[%clk 0:01:37]}  g6 {[%clk 0:00:07]} 30. Nf6 {[%clk 0:01:37]}  Nc6 {[%clk 0:00:05]} 31. Qd7 {[%clk 0:01:36]} 1-0


[Site "https://www.chess.com"]

[Event "Titled Tuesday Blitz July 11 Early 2023"]
[White "Goswami, Vedant"]
[Black "Piesik, Piotr"]
[WhiteFideId "5003725"]
[BlackFideId "1136194"]
[WhiteElo "2413"]
[BlackElo "2609"]
[Result "1/2-1/2"]
[Round "9"]
[TimeControl "180+2"]
[Date "2023.07.11"]
[WhiteClock "0:00:08"]
[BlackClock "0:00:35"]
[Board "55"]

1. d4 {[%clk 0:03:00]}  c5 {[%clk 0:02:57]} 2. e3 {[%clk 0:02:58]}  Nf6 {[%clk 0:02:57]} 3. Nf3 {[%clk 0:02:59]}  d5 {[%clk 0:02:57]} 4. Be2 {[%clk 0:02:57]}  Nc6 {[%clk 0:02:55]} 5. O-O {[%clk 0:02:57]}  Bg4 {[%clk 0:02:55]} 6. Ne5 {[%clk 0:02:49]}  Bxe2 {[%clk 0:02:54]} 7. Qxe2 {[%clk 0:02:49]}  Nxe5 {[%clk 0:02:54]} 8. dxe5 {[%clk 0:02:48]}  Nd7 {[%clk 0:02:55]} 9. e6 {[%clk 0:02:45]}  fxe6 {[%clk 0:02:55]} 10. e4 {[%clk 0:02:45]}  Nf6 {[%clk 0:02:52]} 11. Nc3 {[%clk 0:02:44]}  d4 {[%clk 0:02:47]} 12. e5 {[%clk 0:02:37]}  dxc3 {[%clk 0:02:46]} 13. exf6 {[%clk 0:02:36]}  exf6 {[%clk 0:02:43]} 14. Qxe6+ {[%clk 0:02:28]}  Qe7 {[%clk 0:02:43]} 15. Qf5 {[%clk 0:02:01]}  Kf7 {[%clk 0:02:29]} 16. bxc3 {[%clk 0:01:57]}  Qe6 {[%clk 0:02:29]} 17. Qf3 {[%clk 0:01:55]}  Be7 {[%clk 0:02:17]} 18. Bf4 {[%clk 0:01:46]}  Qf5 {[%clk 0:01:59]} 19. Rfe1 {[%clk 0:01:42]}  Rhe8 {[%clk 0:01:57]} 20. g4 {[%clk 0:01:35]}  Qd7 {[%clk 0:01:51]} 21. Rad1 {[%clk 0:01:34]}  Qc8 {[%clk 0:01:35]} 22. h3 {[%clk 0:01:21]}  Kg8 {[%clk 0:01:33]} 23. Qd5+ {[%clk 0:01:18]}  Kh8 {[%clk 0:01:33]} 24. Qf7 {[%clk 0:01:08]}  Bf8 {[%clk 0:01:33]} 25. Rxe8 {[%clk 0:00:49]}  Qxe8 {[%clk 0:01:34]} 26. Qxb7 {[%clk 0:00:50]}  Rd8 {[%clk 0:01:30]} 27. Rxd8 {[%clk 0:00:46]}  Qxd8 {[%clk 0:01:31]} 28. Qxa7 {[%clk 0:00:45]}  h5 {[%clk 0:01:09]} 29. Qf7 {[%clk 0:00:43]}  hxg4 {[%clk 0:01:06]} 30. hxg4 {[%clk 0:00:43]}  Qd1+ {[%clk 0:01:05]} 31. Kh2 {[%clk 0:00:39]}  Bd6 {[%clk 0:00:55]} 32. Qe8+ {[%clk 0:00:35]}  Kh7 {[%clk 0:00:55]} 33. Qh5+ {[%clk 0:00:34]}  Kg8 {[%clk 0:00:55]} 34. Qe8+ {[%clk 0:00:30]}  Kh7 {[%clk 0:00:55]} 35. Qe4+ {[%clk 0:00:26]}  Kh8 {[%clk 0:00:55]} 36. Bxd6 {[%clk 0:00:25]}  Qxd6+ {[%clk 0:00:55]} 37. Kg2 {[%clk 0:00:25]}  Qd2 {[%clk 0:00:45]} 38. c4 {[%clk 0:00:23]}  Qa5 {[%clk 0:00:43]} 39. Qe8+ {[%clk 0:00:21]}  Kh7 {[%clk 0:00:43]} 40. a4 {[%clk 0:00:20]}  Qa7 {[%clk 0:00:35]} 41. Qe4+ {[%clk 0:00:19]}  Kh8 {[%clk 0:00:35]} 42. Qe8+ {[%clk 0:00:18]}  Kh7 {[%clk 0:00:35]} 43. Qh5+ {[%clk 0:00:15]}  Kg8 {[%clk 0:00:35]} 44. Qe8+ {[%clk 0:00:08]}  Kh7 {[%clk 0:00:35]} 1/2-1/2


[Site "https://www.chess.com"]